fUSD/lending_fUSD_20251129
["ID","MTS","AMOUNT","RATE_DAILY","PERIOD"]
[395106536,1764436237758,-1258.0,0.00015082,2]
[395106537,1764436237767,-19870.17,0.00015111,2]
[395106538,1764436237777,-1397.0,0.00015112,2]
[395106539,1764436237786,-500.0,0.00015114,2]
[395106540,1764436237795,-1000.0,0.00015138,2]
[395106541,1764436237805,-642.94,0.00015138,2]
[395106542,1764436237815,-867.9,0.00015138,2]
[395106543,1764436237824,-1062.0,0.00015142,2]
[395106544,1764436237835,-18.63129389,0.00015149,2]
[395106546,1764436237857,-7247.9952129,0.00015149,2]
[395106547,1764436237867,-150.0,0.00015288,2]
[395106548,1764436237877,-150.0,0.00015288,2]
[395106549,1764436237887,-150.0,0.00015288,2]
[395106550,1764436237897,-150.0,0.00015288,2]
[395106551,1764436237907,-150.0,0.00015288,2]
[395106552,1764436237916,-150.0,0.00015288,2]
[395106553,1764436237926,-150.0,0.00015288,2]
[395106554,1764436237936,-150.0,0.00015288,2]
[395106555,1764436237945,-150.0,0.00015288,2]
[395106557,1764436237954,-118.27870575,0.00015288,2]
[395106558,1764436237966,-142.48732872,0.00015288,2]
[395106559,1764436237975,-150.0,0.00015288,2]
[395106560,1764436237984,-150.0,0.00015288,2]
[395106561,1764436237993,-370.0195352,0.00015332,2]
[395106562,1764436238003,-251.0,0.00015411,2]
[395106563,1764436238013,-867.9,0.00015412,2]
[395106564,1764436238022,-255.0,0.00015413,2]
[395106565,1764436238034,-150.0,0.00015429,2]
[395106566,1764436238044,-306.0,0.00015442,2]
[395106567,1764436238054,-7266.62650679,0.0001547,2]
[395106568,1764436238064,-150.0,0.000155,2]
[395106569,1764436238073,-150.0,0.0001553,2]
[395106570,1764436238085,-150.0,0.00015571,2]
[395106571,1764436238095,-150.0,0.00015571,2]
[395106572,1764436238106,-150.0,0.00015571,2]
[395106573,1764436238118,-150.0,0.00015571,2]
[395106574,1764436238128,-150.0,0.00015627,2]
[395106575,1764436238138,-1000.0,0.00015686,2]
[395106576,1764436238148,-620.0,0.00015686,2]
[395106577,1764436238158,-867.9,0.00015686,2]
[395106578,1764436238168,-253.6,0.00015692,2]
[395106579,1764436238177,-150.0,0.00015712,2]
[395106580,1764436238187,-150.0,0.00015712,2]
[395106581,1764436238196,-150.0,0.00015712,2]
[395106582,1764436238206,-195.0,0.00015714,2]
[395106583,1764436238215,-250.0,0.00015714,2]
[395106584,1764436238225,-150.0,0.00015773,2]
[395106585,1764436238234,-2052.18706081,0.0001579,2]
[395106586,1764436238253,-3379.8,0.0001579,2]
[395106592,1764436239577,-1834.63944598,0.0001579,2]
[395106593,1764436239587,-150.0,0.00015854,2]
[395106594,1764436239597,-150.0,0.00015854,2]
[395106595,1764436239606,-150.0,0.00015854,2]
[395106596,1764436239615,-150.0,0.00015854,2]
[395106597,1764436239625,-150.0,0.00015925,2]
[395106598,1764436239634,-250.0,0.00015953,2]
[395106599,1764436239644,-311.1,0.00015959,2]
[395106600,1764436239653,-346.92554585,0.00015959,2]
[395106601,1764436239662,-151.0,0.00015959,2]
[395106602,1764436239672,-277.35679052,0.00015959,2]
[395106603,1764436239681,-867.9,0.0001596,2]
[395106604,1764436239691,-150.0,0.00015967,2]
[395106605,1764436239699,-502.07472524,0.00015973,2]
[395106606,1764436239708,-500.0,0.00015973,2]
[395106607,1764436239718,-374.34893991,0.00015973,2]
[395106608,1764436239729,-131.05542345,0.00015973,2]
[395106609,1764436239738,-283.19557657,0.00015973,2]
[395106610,1764436239761,-216.80442343,0.00015973,2]
[395106611,1764436239771,-500.0,0.00015973,2]
[395106612,1764436239780,-500.0,0.00015973,2]
[395106613,1764436239789,-210.69835667,0.00015973,2]
[395106614,1764436239801,-289.30164333,0.00015973,2]
[395106615,1764436239810,-171.28775345,0.00015973,2]
[395106616,1764436239820,-500.0,0.00015973,2]
[395106617,1764436239829,-500.0,0.00015973,2]
[395106618,1764436239839,-500.0,0.00015973,2]
[395106619,1764436239848,-500.0,0.00015973,2]
[395106620,1764436239858,-366.67180907,0.00015973,2]
[395106621,1764436239868,-500.0,0.00015973,2]
[395106622,1764436239877,-500.0,0.00015984,2]
[395106623,1764436239887,-1476.0,0.00015994,2]
[395106624,1764436239899,-272.0,0.00015994,2]
[395106625,1764436239910,-150.0,0.00015995,2]
[395106626,1764436239920,-150.0,0.00016016,2]
[395106627,1764436239932,-1866.00430531,0.00016026,2]
[395106628,1764436239942,-150.0,0.00016097,2]
[395106629,1764436239958,-500.0,0.00016097,2]
[395106630,1764436239969,-500.0,0.00016097,2]
[395106631,1764436239978,-150.0,0.00016097,2]
[395106632,1764436239988,-150.0,0.00016097,2]
[395106633,1764436239998,-150.0,0.00016097,2]
[395106634,1764436240007,-150.0,0.00016097,2]
[395106635,1764436240016,-150.0,0.00016097,2]
[395106636,1764436240026,-165.01599511,0.00016097,2]
[395106637,1764436240036,-500.0,0.00016097,2]
[395106638,1764436240045,-150.0,0.00016097,2]
[395106639,1764436240055,-150.0,0.00016097,2]
[395106641,1764436240065,-440.0,0.00016097,2]
[395106642,1764436240074,-190.07902691,0.00016097,2]
[395106644,1764436240084,-810.0,0.00016097,2]
[395106645,1764436240093,-4534.43598478,0.00016111,2]
[395106646,1764436240104,-377.58142882,0.00016111,2]
[395106647,1764436240115,-322.46790335,0.00016111,2]
[395106649,1764436240131,-2032.14118984,0.00016111,2]
[395106650,1764436240142,-150.0,0.00016137,2]
[395106651,1764436240152,-150.0,0.00016137,2]
[395106652,1764436240162,-150.0,0.00016137,2]
[395106653,1764436240172,-150.0,0.00016137,2]
[395106654,1764436240181,-150.0,0.00016137,2]
[395106655,1764436240191,-150.0,0.00016137,2]
[395106656,1764436240200,-1000.0,0.00016234,2]
[395106657,1764436240210,-150.0,0.00016234,2]
[395106658,1764436240219,-500.0,0.00016234,2]
[395106659,1764436240228,-500.0,0.00016234,2]
[395106660,1764436240238,-150.0,0.00016234,2]
[395106661,1764436240247,-150.0,0.00016234,2]
[395106662,1764436240256,-150.0,0.00016234,2]
[395106663,1764436240266,-150.0,0.00016234,2]
[395106664,1764436240275,-500.0,0.00016234,2]
[395106665,1764436240284,-150.0,0.00016234,2]
[395106666,1764436240294,-440.0,0.00016234,2]
[395106667,1764436240303,-810.0,0.00016234,2]
[395106668,1764436240313,-867.9,0.00016234,2]
[395106669,1764436240322,-150.0,0.00016258,2]
[395106670,1764436240332,-150.0,0.00016279,2]
[395106671,1764436240341,-150.0,0.00016307,2]
[395106672,1764436240351,-195.0,0.00016311,2]
[395106673,1764436240360,-250.0,0.00016311,2]
[395106674,1764436240370,-5869.13874507,0.00016338,2]
[395106675,1764436240379,-150.0,0.00016349,2]
[395106676,1764436240388,-150.0,0.00016371,2]
[395106677,1764436240397,-500.0,0.00016371,2]
[395106678,1764436240407,-500.0,0.00016371,2]
[395106679,1764436240416,-150.0,0.00016371,2]
[395106680,1764436240425,-150.0,0.00016371,2]
[395106681,1764436240435,-150.0,0.00016371,2]
[395106682,1764436240445,-200.0,0.00016371,2]
[395106683,1764436240453,-500.0,0.00016371,2]
[395106684,1764436240463,-150.0,0.00016371,2]
[395106685,1764436240475,-440.0,0.00016371,2]
[395106686,1764436240483,-810.0,0.00016371,2]
[395106687,1764436240492,-150.0,0.0001642,2]
[395106688,1764436240502,-150.0,0.0001642,2]
[395106689,1764436240511,-150.0,0.0001642,2]
[395106690,1764436240520,-150.0,0.0001642,2]
[395106691,1764436240534,-7266.62650679,0.00016432,2]
[395106692,1764436240544,-150.0,0.00016438,2]
[395106693,1764436240552,-150.0,0.00016438,2]
[395106694,1764436240563,-150.0,0.00016438,2]
[395106695,1764436240572,-150.0,0.00016438,2]
[395106696,1764436240581,-150.0,0.00016438,2]
[395106697,1764436240590,-150.0,0.00016438,2]
[395106698,1764436240601,-270.75917164,0.00016438,2]
[395106699,1764436240610,-150.0,0.00016438,2]
[395106700,1764436240619,-500.0,0.00016438,2]
[395106701,1764436240628,-301.63725444,0.00016438,2]
[395106702,1764436240638,-190.17,0.00016438,2]
[395106703,1764436240647,-285.27,0.00016438,2]
[395106704,1764436240656,-500.0,0.00016438,2]
[395106705,1764436240665,-500.0,0.00016438,2]
[395106706,1764436240675,-358.29477948,0.00016438,2]
[395106707,1764436240686,-500.0,0.00016438,2]
[395106708,1764436240695,-500.0,0.00016438,2]
[395106709,1764436240705,-500.0,0.00016438,2]
[395106710,1764436240714,-500.0,0.00016438,2]
[395106711,1764436240723,-500.0,0.00016438,2]
[395106712,1764436240732,-500.0,0.00016438,2]
[395106713,1764436240741,-500.0,0.00016438,2]
[395106714,1764436240750,-500.0,0.00016438,2]
[395106715,1764436240759,-500.0,0.00016438,2]
[395106716,1764436240768,-10991.0,0.00016438,2]
[395106717,1764436240777,-800.0,0.00016438,2]
[395106718,1764436240786,-150.0,0.00016501,2]
[395106719,1764436240796,-200.0,0.00016508,2]
[395106720,1764436240806,-500.0,0.00016508,2]
[395106721,1764436240816,-500.0,0.00016508,2]
[395106722,1764436240825,-200.0,0.00016508,2]
[395106723,1764436240836,-150.0,0.00016508,2]
[395106724,1764436240846,-200.0,0.00016508,2]
[395106725,1764436240856,-621.89568788,0.00016508,2]
[395106726,1764436240865,-150.0,0.00016508,2]
[395106727,1764436240875,-440.0,0.00016508,2]
[395106728,1764436240885,-810.0,0.00016508,2]
[395106729,1764436240894,-867.9,0.00016508,2]
[395106730,1764436240905,-457.48387035,0.0001652,2]
[395106731,1764436240915,-684.79730938,0.00016521,2]
[395106732,1764436240924,-1000.0,0.00016521,2]
[395106733,1764436240934,-1000.0,0.00016521,2]
[395106734,1764436240944,-1000.0,0.00016521,2]
[395106735,1764436240953,-1000.0,0.00016521,2]
[395106736,1764436241334,-1000.0,0.00016521,2]
[395106737,1764436241346,-1000.0,0.00016521,2]
[395106738,1764436241356,-1000.0,0.00016521,2]
[395106739,1764436241365,-500.0,0.00016521,2]
[395106740,1764436241374,-1000.0,0.00016521,2]
[395106741,1764436241383,-7326.0,0.00016526,2]
[395106742,1764436241392,-176459.4504608,0.00016526,2]
[395106743,1764436241401,-151.0,0.00016526,2]
[395106744,1764436241410,-151.0,0.00016526,2]
[395106745,1764436241419,-151.0,0.00016526,2]
[395106746,1764436241432,-238.38779,0.00016526,2]
[395106747,1764436241441,-238.38779,0.00016526,2]
[395106748,1764436241451,-151.0,0.00016526,2]
[395106749,1764436241460,-238.38779,0.00016526,2]
[395106750,1764436241468,-238.38779,0.00016526,2]
[395106751,1764436241478,-151.0,0.00016526,2]
[395106752,1764436241487,-151.0,0.00016526,2]
[395106753,1764436241496,-151.0,0.00016526,2]
[395106754,1764436241506,-151.0,0.00016526,2]
[395106755,1764436241515,-151.0,0.00016526,2]
[395106756,1764436241525,-151.0,0.00016526,2]
[395106757,1764436241536,-151.0,0.00016526,2]
[395106758,1764436241545,-151.0,0.00016526,2]
[395106759,1764436241554,-151.0,0.00016526,2]
[395106760,1764436241564,-151.0,0.00016526,2]
[395106761,1764436241573,-151.0,0.00016526,2]
[395106762,1764436241583,-151.0,0.00016526,2]
[395106763,1764436241591,-151.0,0.00016526,2]
[395106764,1764436241600,-151.0,0.00016526,2]
[395106765,1764436241610,-151.0,0.00016526,2]
[395106766,1764436241618,-151.0,0.00016526,2]
[395106767,1764436241627,-151.0,0.00016526,2]
[395106768,1764436241636,-151.0,0.00016526,2]
[395106769,1764436241646,-151.0,0.00016526,2]
[395106770,1764436241655,-151.0,0.00016526,2]
[395106771,1764436241664,-151.0,0.00016526,2]
[395106772,1764436241673,-191.180654,0.00016526,2]
[395106773,1764436241682,-151.0,0.00016526,2]
[395106774,1764436241691,-151.0,0.00016526,2]
[395106775,1764436241700,-151.0,0.00016526,2]
[395106776,1764436241709,-163.462375,0.00016526,2]
[395106777,1764436241719,-151.0,0.00016526,2]
[395106778,1764436241729,-151.0,0.00016526,2]
[395106779,1764436241738,-151.0,0.00016526,2]
[395106780,1764436241747,-151.0,0.00016526,2]
[395106781,1764436241758,-151.0,0.00016526,2]
[395106782,1764436241768,-151.0,0.00016526,2]
[395106783,1764436241778,-151.0,0.00016526,2]
[395106784,1764436241788,-151.0,0.00016526,2]
[395106785,1764436241797,-151.0,0.00016526,2]
[395106786,1764436241806,-427.45964135,0.0001655,2]
[395106787,1764436241819,-150.0,0.00016562,2]
[395106788,1764436241828,-150.0,0.00016562,2]
[395106789,1764436241838,-150.0,0.00016562,2]
[395106790,1764436241847,-208.7124507,0.00016575,2]
[395106791,1764436241856,-150.0,0.00016575,2]
[395106792,1764436241866,-150.0,0.00016575,2]
[395106793,1764436241875,-150.0,0.00016575,2]
[395106794,1764436241884,-150.0,0.00016575,2]
[395106795,1764436241894,-150.0,0.00016575,2]
[395106796,1764436241904,-500.0,0.00016575,2]
[395106797,1764436241914,-433.0,0.00016627,2]
[395106798,1764436241923,-500.0,0.00016645,2]
[395106799,1764436241933,-500.0,0.00016645,2]
[395106800,1764436241942,-150.0,0.00016645,2]
[395106801,1764436241952,-150.0,0.00016645,2]
[395106802,1764436241961,-440.0,0.00016645,2]
[395106803,1764436241970,-810.0,0.00016645,2]
[395106804,1764436241979,-150.0,0.00016647,2]
[395106805,1764436241989,-866.50413284,0.00016672,2]
[395106806,1764436241998,-150.0,0.00016703,2]
[395106807,1764436242008,-150.0,0.00016703,2]
[395106808,1764436242018,-150.0,0.00016703,2]
[395106809,1764436242027,-150.0,0.00016703,2]
[395106810,1764436242035,-150.0,0.00016712,2]
[395106811,1764436242045,-150.0,0.00016712,2]
[395106812,1764436242055,-150.0,0.00016712,2]
[395106813,1764436242064,-150.0,0.00016712,2]
[395106814,1764436242073,-150.0,0.00016744,2]
[395106815,1764436242082,-1014.0,0.00016746,2]
[395106816,1764436242091,-7266.62650679,0.00016753,2]
[395106817,1764436242100,-222.65612674,0.00016767,2]
[395106818,1764436242109,-150.0,0.00016774,2]
[395106819,1764436242118,-1000.0,0.00016782,2]
[395106820,1764436242127,-500.0,0.00016782,2]
[395106821,1764436242137,-560.0,0.00016782,2]
[395106822,1764436242146,-250.0,0.00016782,2]
[395106823,1764436242155,-250.0,0.00016782,2]
[395106824,1764436242164,-440.0,0.00016782,2]
[395106825,1764436242174,-810.0,0.00016782,2]
[395106826,1764436242183,-867.9,0.00016782,2]
[395106827,1764436242195,-1014.0,0.00016801,2]
[395106828,1764436242205,-1414.92524019,0.00016821,2]
[395106829,1764436242214,-365.69736,0.0001683,2]
[395106830,1764436242224,-150.0,0.00016845,2]
[395106831,1764436242233,-150.0,0.00016849,2]
[395106832,1764436242242,-200.0,0.00016849,2]
[395106833,1764436242251,-200.0,0.00016849,2]
[395106834,1764436242261,-53953.36373902,0.000169,2]
[395106835,1764436242270,-10000.0,0.000169,2]
[395106836,1764436242279,-323.74125035,0.000169,2]
[395106837,1764436242288,-1232.34574025,0.000169,2]
[395106838,1764436242297,-287.06863924,0.000169,2]
[395106839,1764436242307,-3583.83810821,0.000169,2]
[395106841,1764436242315,-183.5991517,0.000169,2]
[395106842,1764436242325,-524.0,0.00016919,2]
[395106843,1764436242335,-440.0,0.00016919,2]
[395106844,1764436242344,-810.0,0.00016919,2]
[395106845,1764436242353,-1014.0,0.00016936,2]
[395106846,1764436242363,-365.69736,0.0001695,2]
[395106847,1764436242372,-500.0,0.00016972,2]
[395106848,1764436242381,-501.68270719,0.00016973,2]
[395106849,1764436242390,-500.0,0.00016973,2]
[395106850,1764436242399,-336.72218213,0.00016973,2]
[395106851,1764436242409,-500.0,0.00016973,2]
[395106852,1764436242420,-500.0,0.00016973,2]
[395106853,1764436242430,-500.0,0.00016973,2]
[395106854,1764436242439,-500.0,0.00016973,2]
[395106855,1764436242449,-500.0,0.00016973,2]
[395106856,1764436242458,-500.0,0.00016973,2]
[395106857,1764436242467,-500.0,0.00016973,2]
[395106858,1764436242476,-500.0,0.00016973,2]
[395106861,1764436242486,-500.0,0.00016973,2]
[395106864,1764436242495,-500.0,0.00016973,2]
[395106867,1764436242504,-500.0,0.00016973,2]
[395106869,1764436242513,-500.0,0.00016973,2]
[395106871,1764436242523,-500.0,0.00016973,2]
[395106873,1764436242536,-500.0,0.00016973,2]
[395106875,1764436242545,-500.0,0.00016973,2]
[395106877,1764436242554,-500.0,0.00016973,2]
[395106878,1764436242564,-359.11444103,0.00016973,2]
[395106879,1764436242573,-500.0,0.00016973,2]
[395106880,1764436242585,-500.0,0.00016973,2]
[395106881,1764436242595,-500.0,0.00016973,2]
[395106882,1764436242607,-415.30385931,0.00016973,2]
[395106883,1764436242616,-500.0,0.00016973,2]
[395106884,1764436242625,-281.67573932,0.00016973,2]
[395106885,1764436242634,-500.0,0.00016973,2]
[395106886,1764436242643,-500.0,0.00016973,2]
[395106887,1764436242652,-500.0,0.00016973,2]
[395106888,1764436242661,-500.0,0.00016973,2]
[395106889,1764436242670,-500.0,0.00016973,2]
[395106890,1764436242679,-500.0,0.00016973,2]
[395106891,1764436242688,-200.0,0.00016983,2]
[395106892,1764436242697,-153.55302582,0.00016983,2]
[395106893,1764436242706,-200.0,0.00016986,2]
[395106894,1764436242716,-150.0,0.00016986,2]
[395106895,1764436242725,-150.0,0.00016986,2]
[395106896,1764436242734,-150.0,0.00016986,2]
[395106897,1764436242743,-159.50313578,0.00016986,2]
[395106898,1764436242752,-150.0,0.00016986,2]
[395106899,1764436242762,-238.95743324,0.00016986,2]
[395106900,1764436242771,-150.0,0.00016986,2]
[395106901,1764436242780,-150.0,0.00016986,2]
[395106902,1764436242790,-150.0,0.00016986,2]
[395106903,1764436242800,-150.00000001,0.00016986,2]
[395106904,1764436242809,-263.26519719,0.00016986,2]
[395106905,1764436242819,-500.0,0.00016996,2]
[395106906,1764436242828,-15722.3079917,0.00016997,2]
[395106907,1764436242837,-42393.3417346,0.00016997,2]
[395106908,1764436242847,-361.0964252,0.00016997,2]
[395106910,1764436242857,-151.0,0.00016997,2]
[395106911,1764436242866,-151.0,0.00016997,2]
[395106912,1764436242875,-151.0,0.00016997,2]
[395106913,1764436242885,-151.0,0.00016997,2]
[395106914,1764436242895,-290.47845738,0.00016999,2]
[395106915,1764436242905,-300.0,0.00016999,2]
[395106917,1764436242914,-1265362.21351205,0.00017,2]
[395106918,1764436242947,-949.309992,0.00017,2]
[395106919,1764436242967,-4480.8035198,0.00017,2]
[395106921,1764436243174,-3189.18525362,0.000169,2]
[395106922,1764436243183,-485.38331852,0.00016973,2]
[395106923,1764436243193,-205943.6707606,0.00017,2]
[395106924,1764436243204,-32189.7079647,0.00017,2]
[395106925,1764436243224,-777.45991394,0.00017,2]
[395106926,1764436243235,-652.69725101,0.00017,2]
[395106931,1764436246948,-197.02240292,0.000169,2]
[395106932,1764436246958,-26839.60436594,0.00017,2]
[395106933,1764436276799,500.0,0.00014285,2]
[395106934,1764436277064,500.0,0.00014285,2]
[395106935,1764436277343,500.0,0.00014339,2]
[395106936,1764436327640,8500.01,0.00014186,2]
[395106937,1764436327670,10000.01,0.00014186,2]
[395106938,1764436327693,10000.01,0.00014186,2]
[395106939,1764436327718,10000.01,0.00014186,2]
[395106940,1764436327744,10000.01,0.00014186,2]
[395106941,1764436327768,10000.01,0.00014186,2]
[395106942,1764436327793,10000.01,0.00014186,2]
[395106943,1764436327818,10000.01,0.00014186,2]
[395106944,1764436327844,10000.01,0.00014186,2]
[395106945,1764436327869,10000.01,0.00014186,2]
[395106946,1764436327896,661499.9,0.00014186,2]
[395106947,1764436339899,1000.0,0.00014186,2]
[395106954,1764437153819,10000.01,0.000146,2]
[395106955,1764437153844,10000.01,0.000146,2]
[395106956,1764437153868,6340.46315351,0.000146,2]
[395106960,1764437402470,175.73,0.00012322,2]
[395106983,1764437431759,-759.152318,0.00014743,2]
[395106984,1764437431768,-191.11960204,0.00014899,2]
[395106985,1764437431778,-67.60176545,0.00014968,2]
[395106986,1764437431814,-110.91647937,0.00014968,2]
[395106987,1764437431824,-1500.0,0.00014968,2]
[395106988,1764437431834,-1200.0,0.00014999,2]
[395106989,1764437431843,-190.23974851,0.00014999,2]
[395106990,1764437431923,-109.76025149,0.00014999,2]
[395106991,1764437431933,-1200.0,0.00014999,2]
[395106992,1764437431942,-300.0,0.00014999,2]
[395106993,1764437431952,-150.0,0.00014999,2]
[395106994,1764437431962,-1485.63531092,0.00015,2]
[395106995,1764437431971,-7153.54700632,0.00015,2]
[395106996,1764437431982,-16392.01481311,0.00015,2]
[395106997,1764437431991,-18686.23934967,0.00015,4]
[395106998,1764437437789,-2724.7365,0.00015,4]
[395106999,1764437437800,-1122.70891671,0.00015,4]
[395107000,1764437437903,-5411.8764915,0.00015,4]
[395107001,1764437437912,-578.20924308,0.0001508,2]
[395107002,1764437437922,-159.02910352,0.00015288,2]
[395107003,1764437437931,-150.0,0.00015288,2]
[395107004,1764437437941,-150.0,0.00015288,2]
[395107005,1764437437950,-154.6279571,0.00015288,2]
[395107006,1764437437959,-168.22944718,0.00015288,2]
[395107007,1764437437969,-150.0,0.00015288,2]
[395107008,1764437437978,-150.0,0.00015479,2]
[395107009,1764437437988,-159.74,0.00015535,2]
[395107010,1764437437997,-3576.65305151,0.00015678,2]
[395107011,1764437438009,-259.36743815,0.00015678,2]
[395107012,1764437438020,-5810.08951034,0.00015678,2]
[395107013,1764437438030,-150.0,0.00015761,2]
[395107014,1764437438040,-150.0,0.00015791,2]
[395107015,1764437438050,-958.49673148,0.00015791,2]
[395107017,1764437438061,-8000.39326852,0.00015791,2]
[395107018,1764437438071,-1664.04,0.00015791,2]
[395107021,1764437438081,-166.66,0.00015817,2]
[395107022,1764437438091,-1375.0,0.00015824,2]
[395107023,1764437438101,-151.0,0.00015893,2]
[395107024,1764437438110,-150.99,0.00015962,2]
[395107025,1764437438120,-300.0,0.00015963,2]
[395107026,1764437438130,-210.76554998,0.00015963,2]
[395107027,1764437439694,-528.21432336,0.00015963,2]
[395107028,1764437439885,-261.02012666,0.00015963,2]
[395107029,1764437439894,-727.68848048,0.00015963,2]
[395107030,1764437439903,-267.46074303,0.00015963,2]
[395107031,1764437439917,-500.0,0.00015973,2]
[395107032,1764437439927,-500.0,0.00015973,2]
[395107033,1764437439936,-500.0,0.00015973,2]
[395107034,1764437439945,-500.0,0.00015973,2]
[395107035,1764437439955,-500.0,0.00015973,2]
[395107036,1764437439964,-500.0,0.00015973,2]
[395107037,1764437439976,-500.0,0.00015973,2]
[395107038,1764437439987,-500.0,0.00015973,2]
[395107039,1764437439997,-500.0,0.00015973,2]
[395107040,1764437440008,-160.04815265,0.00015973,2]
[395107041,1764437440017,-500.0,0.00015973,2]
[395107042,1764437440028,-65.1814433,0.00015973,2]
[395107043,1764437440043,-434.8185567,0.00015973,2]
[395107044,1764437440053,-500.0,0.00015973,2]
[395107045,1764437440064,-275.64766631,0.00015973,2]
[395107047,1764437440073,-501.10650118,0.00015973,2]
[395107048,1764437440083,-500.0,0.00015973,2]
[395107049,1764437440092,-500.0,0.00015973,2]
[395107050,1764437440101,-165.53504337,0.00015973,2]
[395107051,1764437440114,-334.46495663,0.00015973,2]
[395107052,1764437440124,-184.28504337,0.00015973,2]
[395107053,1764437440145,-315.71495663,0.00015973,2]
[395107054,1764437440155,-500.0,0.00015973,2]
[395107055,1764437440164,-1763.0,0.0001598,2]
[395107056,1764437440174,-318.55,0.00015994,2]
[395107057,1764437440184,-172655.5699,0.00016,2]
[395107058,1764437440194,-1527.0,0.00016012,2]
[395107059,1764437440204,-255.0,0.00016124,2]
[395107062,1764437440214,-166.66,0.0001615,2]
[395107065,1764437440223,-5000.00396391,0.000162,5]
[395107068,1764437440234,-512.0,0.00016247,2]
[395107069,1764437440244,-323.33930456,0.000163,2]
[395107070,1764437440253,-300.0,0.000163,2]
[395107071,1764437440264,-200.0,0.0001634,2]
[395107072,1764437440276,-420.0,0.00016416,2]
[395107073,1764437440285,-269.08724405,0.00016438,2]
[395107074,1764437440295,-300.0,0.00016465,2]
[395107075,1764437440304,-300.0,0.00016465,2]
[395107076,1764437440314,-344.30028849,0.00016465,2]
[395107077,1764437440323,-166.66,0.00016483,2]
[395107078,1764437440333,-500.0,0.00016492,2]
[395107079,1764437440343,-500.0,0.00016492,2]
[395107080,1764437440352,-174.11750457,0.00016492,2]
[395107081,1764437440361,-500.0,0.00016492,2]
[395107082,1764437440371,-150.92164217,0.00016492,2]
[395107083,1764437440380,-346.57676487,0.00016492,2]
[395107084,1764437440389,-500.0,0.00016492,2]
[395107085,1764437440399,-500.0,0.00016492,2]
[395107086,1764437440411,-500.0,0.00016492,2]
[395107087,1764437440420,-500.0,0.00016492,2]
[395107088,1764437440429,-500.0,0.00016492,2]
[395107089,1764437440439,-500.0,0.00016492,2]
[395107090,1764437440448,-500.0,0.00016492,2]
[395107091,1764437440462,-500.0,0.00016492,2]
[395107092,1764437440472,-582.84897046,0.00016492,2]
[395107093,1764437440482,-264.17445415,0.00016493,2]
[395107094,1764437440491,-8000.0,0.00016493,2]
[395107095,1764437440500,-8000.0,0.00016493,2]
[395107096,1764437440510,-4140.98841583,0.00016493,2]
[395107097,1764437440519,-500.0,0.00016493,2]
[395107098,1764437440529,-180.90449535,0.00016493,2]
[395107099,1764437440538,-278.88579801,0.00016493,2]
[395107100,1764437440547,-250.0,0.00016493,2]
[395107101,1764437440557,-250.0,0.00016493,2]
[395107102,1764437440566,-250.0,0.00016493,2]
[395107103,1764437440575,-1000.0,0.00016493,2]
[395107104,1764437440585,-1000.0,0.00016493,2]
[395107105,1764437440596,-244.02628622,0.00016493,2]